bitfinex/quotes_SOLUSD_20230113
["timestamp","ask_amount","ask_price","bid_price","bid_amount"]
[1673627516974,45.07,16.644,16.633,20.0]
[1673627517521,179.9,16.645,16.633,20.0]
[1673627517725,179.9,16.647,16.633,20.0]
[1673627517938,179.9,16.645,16.633,20.0]
[1673627518128,179.9,16.643,16.633,20.0]
[1673627519094,179.9,16.645,16.633,20.0]
[1673627519282,179.9,16.643,16.633,20.0]
[1673627520347,179.9,16.645,16.633,20.0]
[1673627520562,179.9,16.643,16.633,20.0]
[1673627521617,179.9,16.645,16.633,20.0]
[1673627522148,179.9,16.645,16.625,20.0]
[1673627522149,16.23,16.64,16.621,45.13]
[1673627522355,20.0,16.637,16.621,160.0277]
[1673627522548,20.0,16.637,16.621,114.8977]
[1673627523701,20.0,16.637,16.624,20.0]
[1673627523910,179.9,16.638,16.624,20.0]
[1673627524144,160.0543,16.639,16.624,20.0]
[1673627524555,114.9743,16.639,16.624,20.0]
[1673627524969,160.0543,16.639,16.624,20.0]
[1673627525806,45.08,16.639,16.624,20.0]
[1673627526034,45.07,16.643,16.624,49.8800799]
[1673627526226,45.07,16.644,16.625,45.12]
[1673627526564,45.07,16.644,16.627,20.0]
[1673627526755,224.97,16.645,16.628,20.0]
[1673627530025,224.97,16.645,16.627,20.0]
[1673627532130,20.0,16.644,16.625,45.12]
[1673627532442,179.9,16.642,16.623,119.1093]
[1673627532641,16.27,16.64,16.623,119.1093]
[1673627532964,224.98,16.639,16.623,119.1093]
[1673627533376,20.0,16.638,16.623,119.1093]
[1673627533589,45.09,16.637,16.623,119.1093]
[1673627534340,45.09,16.637,16.624,20.0]
[1673627535160,297.3139,16.639,16.624,20.0]
[1673627535481,117.4139,16.639,16.624,20.0]
[1673627535701,342.3939,16.639,16.624,20.0]
[1673627536309,342.3939,16.639,16.617,45.14]
[1673627536310,179.9,16.637,16.617,45.14]
[1673627536631,16.36,16.63,16.612,158.5437]
[1673627536852,45.11,16.629,16.612,113.3837]
[1673627537258,225.01,16.629,16.612,113.3837]
[1673627538436,20.0,16.628,16.612,113.3837]
[1673627538623,179.9,16.626,16.612,113.3837]
[1673627539043,179.9,16.626,16.615,20.0]
[1673627539264,20.0,16.625,16.615,20.0]
[1673627540119,65.12,16.625,16.615,20.0]
[1673627540316,20.0,16.625,16.615,20.0]
[1673627540641,16.36,16.62,16.602,45.18]
[1673627540836,225.04,16.619,16.602,113.6547]
[1673627541171,45.14,16.619,16.602,113.6547]
[1673627541366,16.36,16.62,16.602,113.6547]
[1673627541570,16.36,16.62,16.603,45.18]
[1673627542310,179.9,16.626,16.606,75.0500799]
[1673627542516,179.9,16.626,16.607,20.0]
[1673627542729,179.9,16.626,16.608,45.17]
[1673627542946,179.9,16.626,16.609,20.0]
[1673627543351,20.0,16.625,16.609,20.0]
[1673627543559,199.9,16.625,16.609,20.0]
[1673627543773,225.02,16.624,16.608,20.0]
[1673627543992,16.22,16.62,16.608,20.0]
[1673627544202,225.04,16.619,16.602,113.6547]
[1673627544833,45.14,16.619,16.602,113.6547]
[1673627545049,45.11,16.627,16.606,45.17]
[1673627545272,45.11,16.628,16.607,20.0]
[1673627545456,45.11,16.628,16.608,45.17]
[1673627546005,225.01,16.628,16.608,45.17]
[1673627546219,225.01,16.628,16.609,20.0]
[1673627546405,225.01,16.628,16.61,45.16]
[1673627546614,225.01,16.628,16.611,20.0]
[1673627547252,225.01,16.628,16.609,20.0]
[1673627547463,225.01,16.628,16.61,45.16]
[1673627547673,225.01,16.628,16.611,20.0]
[1673627548094,20.0,16.627,16.611,20.0]
[1673627548298,20.0,16.627,16.608,20.0]
[1673627548522,45.12,16.626,16.609,45.16]
[1673627548738,225.01,16.627,16.61,20.0]
[1673627549246,225.01,16.627,16.609,65.16]
[1673627549575,225.01,16.627,16.609,20.0]
[1673627549786,20.0,16.626,16.608,20.0]
[1673627549995,225.01,16.627,16.608,20.0]
[1673627550193,225.01,16.627,16.607,40.0]
[1673627550398,225.01,16.627,16.608,45.17]
[1673627550608,225.01,16.627,16.609,20.0]
[1673627551255,225.01,16.627,16.607,20.0]
[1673627551887,254.8900799,16.627,16.606,20.0]
[1673627552202,20.0,16.626,16.606,20.0]
[1673627552518,16.22,16.62,16.603,45.18]
[1673627552839,45.14,16.619,16.602,113.6547]
[1673627553246,16.22,16.62,16.602,113.6547]
[1673627553780,16.22,16.62,16.603,45.18]
[1673627554603,45.13,16.622,16.603,45.18]
[1673627554825,225.02,16.625,16.603,45.18]
[1673627555023,225.02,16.625,16.606,20.0]
[1673627555467,225.02,16.625,16.603,45.18]
[1673627555661,16.36,16.62,16.606,20.0]
[1673627558392,225.02,16.624,16.606,20.0]
[1673627558602,225.02,16.624,16.607,20.0]
[1673627559148,45.12,16.624,16.607,20.0]
[1673627559351,45.11,16.627,16.608,45.17]
[1673627559669,45.11,16.627,16.609,20.0]
[1673627559861,45.11,16.627,16.61,20.0]
[1673627560072,45.11,16.627,16.611,20.0]
[1673627560605,179.9,16.628,16.611,20.0]
[1673627562590,179.9,16.628,16.612,20.0]
[1673627562921,225.01,16.628,16.613,20.0]
[1673627563543,179.9,16.628,16.613,20.0]
[1673627563756,179.9,16.628,16.614,108.8934]
[1673627563980,179.9,16.628,16.615,20.0]
[1673627564381,162.9196,16.629,16.615,20.0]
[1673627566616,342.8196,16.629,16.615,20.0]
[1673627567041,372.6996799,16.629,16.615,20.0]
[1673627567565,29.8800799,16.628,16.615,20.0]
[1673627567771,225.01,16.627,16.615,20.0]
[1673627567984,45.11,16.627,16.615,20.0]
[1673627568297,45.11,16.628,16.615,20.0]
[1673627570487,117.8096,16.629,16.615,20.0]
[1673627572711,297.7096,16.629,16.615,20.0]
[1673627572923,342.8196,16.629,16.615,20.0]
[1673627573640,20.0,16.628,16.615,20.0]
[1673627573845,179.9,16.626,16.615,20.0]
[1673627574061,45.12,16.625,16.615,20.0]
[1673627575234,225.01,16.627,16.615,20.0]
[1673627576172,45.11,16.627,16.615,20.0]
[1673627576384,179.9,16.627,16.615,20.0]
[1673627576605,179.9,16.625,16.615,20.0]
[1673627576924,225.02,16.624,16.615,20.0]
[1673627577131,179.9,16.624,16.61,20.0]
[1673627577348,45.13,16.623,16.61,20.0]
[1673627577955,225.02,16.624,16.61,20.0]
[1673627579137,254.9000799,16.624,16.61,20.0]
[1673627579318,254.9000799,16.624,16.606,392.3]
[1673627579652,16.23,16.62,16.606,392.3]
[1673627579864,16.23,16.62,16.603,45.18]
[1673627580266,45.14,16.619,16.603,20.0]
[1673627580476,61.36,16.62,16.603,20.0]
[1673627581212,61.36,16.62,16.606,20.0]
[1673627581422,16.23,16.62,16.606,20.0]
[1673627581652,45.13,16.622,16.607,20.0]
[1673627581838,158.5826,16.627,16.607,20.0]
[1673627582050,338.4826,16.627,16.607,20.0]
[1673627583529,113.4726,16.627,16.61,16.36]
[1673627583743,113.4726,16.627,16.612,20.0]
[1673627583946,113.4726,16.627,16.613,20.0]
[1673627584156,61.43,16.63,16.613,20.0]
[1673627584916,16.32,16.63,16.613,65.15]
[1673627585103,16.32,16.63,16.613,20.0]
[1673627585751,16.32,16.63,16.614,108.5386]
[1673627585951,16.32,16.63,16.615,20.0]
[1673627587645,45.1,16.633,16.616,20.0]
[1673627587831,45.1,16.633,16.617,20.0]
[1673627588484,45.00056475,16.633,16.616,20.0]
[1673627588793,45.00056475,16.633,16.615,20.0]
[1673627589637,108.5564,16.634,16.617,20.0]
[1673627589861,108.5564,16.634,16.618,65.14]
[1673627590559,108.5564,16.634,16.619,20.0]
[1673627590768,108.5564,16.634,16.62,65.13]
[1673627591633,108.5564,16.634,16.621,20.0]
[1673627591830,108.5564,16.634,16.622,20.0]
[1673627592881,45.08,16.639,16.622,20.0]
[1673627593092,340.3216,16.639,16.623,115.8508]
[1673627593419,340.3216,16.639,16.624,20.0]
[1673627595626,160.4216,16.639,16.624,20.0]
[1673627595837,160.4216,16.639,16.625,20.0]
[1673627596035,160.4216,16.639,16.626,20.0]
[1673627596480,115.3416,16.639,16.626,20.0]
[1673627597615,45.08,16.64,16.627,20.0]
[1673627597828,179.9,16.647,16.628,20.0]
[1673627598141,45.06,16.646,16.628,20.0]
[1673627598669,45.06,16.648,16.63,36.2]
[1673627599075,156.8958,16.649,16.631,65.1]
[1673627599504,111.8458,16.649,16.633,20.0]
[1673627599717,111.8458,16.649,16.634,20.0]
[1673627600544,111.8458,16.649,16.635,20.0]
[1673627600772,45.04,16.654,16.636,20.0]
[1673627600976,161.2853,16.654,16.636,20.0]
[1673627602330,341.1853,16.654,16.636,20.0]
[1673627602540,29.8800799,16.653,16.636,20.0]
[1673627602765,45.05,16.652,16.634,20.0]
[1673627603169,29.8800799,16.651,16.634,20.0]
[1673627603394,45.05,16.65,16.634,20.0]
[1673627605191,74.9300799,16.65,16.634,20.0]
[1673627605590,29.8800799,16.65,16.634,20.0]
[1673627607608,45.04,16.653,16.634,20.0]
[1673627607792,29.8800799,16.652,16.634,20.0]
[1673627608007,45.05,16.651,16.634,20.0]
[1673627608443,45.04,16.653,16.634,20.0]
[1673627609509,45.04,16.653,16.635,20.0]
[1673627609699,45.04,16.653,16.636,20.0]
[1673627612351,45.04,16.653,16.637,20.0]
[1673627612554,45.04,16.653,16.638,20.0]
[1673627612873,116.2453,16.654,16.638,20.0]
[1673627613282,45.04,16.653,16.638,20.0]
[1673627613493,116.2453,16.654,16.64,16.33]
[1673627613706,116.2453,16.654,16.641,135.3558]
[1673627613923,100.0,16.65,16.641,135.3558]
[1673627614333,100.0,16.65,16.642,20.0]
[1673627614543,100.0,16.65,16.643,20.0]
[1673627616345,100.0,16.65,16.641,115.3558]
[1673627616658,100.0,16.65,16.637,20.0]
[1673627617913,100.0,16.65,16.638,20.0]
[1673627618338,45.02,16.663,16.641,20.0]
[1673627618554,118.9374,16.664,16.642,45.07]
[1673627618755,45.02,16.663,16.643,20.0]
[1673627619081,45.02,16.663,16.644,20.0]
[1673627619296,45.02,16.663,16.645,20.0]
[1673627619477,45.02,16.663,16.645,49.8800799]
[1673627619813,118.9374,16.664,16.646,74.9400799]
[1673627620124,118.9374,16.664,16.647,40.0]
[1673627620533,45.02,16.663,16.647,69.8800799]
[1673627620855,45.02,16.663,16.647,40.0]
[1673627622975,45.02,16.663,16.647,69.8800799]
[1673627623187,118.9374,16.664,16.647,69.8800799]
[1673627623590,45.02,16.663,16.647,69.8800799]
[1673627626238,45.02,16.663,16.647,49.8800799]
[1673627627290,45.02,16.663,16.648,20.0]
[1673627627497,118.9374,16.664,16.649,20.0]
[1673627627713,118.9374,16.664,16.649,49.8800799]
[1673627628025,118.9374,16.664,16.65,29.8800799]
[1673627628334,118.9374,16.664,16.651,20.0]
[1673627628759,118.9374,16.664,16.651,49.8800799]
[1673627629265,45.01,16.667,16.652,20.0]
[1673627629604,45.0,16.669,16.653,49.8800799]
[1673627629800,44.99,16.674,16.653,49.8800799]
[1673627630003,44.99,16.674,16.654,74.9200799]
[1673627630228,44.99,16.674,16.656,20.0]
[1673627630639,64.99,16.674,16.657,20.0]
[1673627633381,64.99,16.674,16.657,49.8800799]
[1673627633593,64.99,16.674,16.657,20.0]
[1673627633898,44.99,16.674,16.657,20.0]
[1673627634120,44.99,16.674,16.657,49.8800799]
[1673627634528,44.99,16.674,16.658,20.0]
[1673627634849,44.99,16.674,16.659,20.0]
[1673627635064,114.4283,16.675,16.66,20.0]
[1673627635259,114.4283,16.675,16.661,20.0]
[1673627635470,44.99,16.674,16.661,20.0]
[1673627636325,114.4283,16.675,16.661,20.0]
[1673627638406,114.4283,16.675,16.661,49.8800799]
[1673627638629,114.4283,16.675,16.662,20.0]
[1673627638844,114.4283,16.675,16.663,20.0]
[1673627640304,44.97,16.681,16.663,20.0]
[1673627640504,116.6799,16.68,16.663,20.0]
[1673627641252,44.97,16.679,16.663,65.02]
[1673627641459,44.97,16.679,16.663,20.0]
[1673627641671,64.97,16.679,16.662,20.0]
[1673627641892,64.97,16.679,16.661,20.0]
[1673627642631,44.97,16.679,16.661,49.8800799]
[1673627642839,116.6799,16.68,16.661,49.8800799]
[1673627643035,179.9,16.687,16.661,49.8800799]
[1673627643036,44.96,16.684,16.662,20.0]
[1673627643239,44.96,16.685,16.663,51.05094]
[1673627643461,44.96,16.685,16.67,16.36]
[1673627643671,44.95,16.687,16.671,20.0]
[1673627643887,44.95,16.687,16.671,49.8800799]
[1673627644117,113.113,16.688,16.672,29.8800799]
[1673627644295,113.113,16.688,16.673,20.0]
[1673627645161,113.113,16.688,16.674,20.0]
[1673627645357,113.113,16.688,16.675,20.0]
[1673627647463,44.95,16.687,16.675,20.0]
[1673627647693,44.95,16.687,16.671,20.0]
[1673627647991,134.2388,16.686,16.671,20.0]
[1673627648826,44.96,16.685,16.671,20.0]
[1673627649037,20.0,16.684,16.671,20.0]
[1673627649355,44.96,16.685,16.669,20.0]
[1673627649773,44.96,16.685,16.669,49.8800799]
[1673627649988,114.2388,16.686,16.67,20.0]
[1673627650196,114.2388,16.686,16.671,20.0]
[1673627650409,114.2388,16.686,16.671,49.8800799]
[1673627650721,113.113,16.688,16.672,29.8800799]
[1673627650914,113.113,16.688,16.673,20.0]
[1673627651335,113.113,16.688,16.673,49.8800799]
[1673627652742,179.9,16.686,16.673,20.0]
[1673627652907,20.0,16.685,16.673,20.0]
[1673627653250,44.96,16.684,16.669,20.0]
[1673627653976,179.9,16.679,16.65,135.9237]
[1673627654188,81.91,16.68,16.65,126.4193]
[1673627654189,16.22,16.67,16.65,126.4193]
[1673627654404,45.0,16.669,16.65,126.4193]
[1673627654598,45.0,16.669,16.651,45.05]
[1673627654805,44.98,16.677,16.652,20.0]
[1673627655009,44.97,16.679,16.653,45.04]
[1673627655235,44.97,16.679,16.654,20.0]
[1673627655443,44.97,16.679,16.655,45.04]
[1673627655657,179.9,16.678,16.656,20.0]
[1673627655870,244.88,16.677,16.656,20.0]
[1673627656281,244.88,16.677,16.654,20.0]
[1673627656595,244.88,16.677,16.655,45.04]
[1673627656799,244.88,16.677,16.656,20.0]
[1673627657223,224.88,16.677,16.654,20.0]
[1673627658808,44.98,16.677,16.655,20.0]
[1673627659020,44.97,16.679,16.656,20.0]
[1673627659334,334.8878,16.679,16.656,20.0]
[1673627659734,334.8878,16.679,16.654,20.0]
[1673627659949,20.0,16.678,16.654,20.0]
[1673627660303,224.88,16.677,16.654,20.0]
[1673627660499,20.0,16.676,16.654,20.0]
[1673627660806,224.88,16.675,16.653,20.0]
[1673627661321,16.36,16.67,16.652,45.05]
[1673627661530,179.9,16.668,16.65,109.9293]
[1673627661741,45.01,16.667,16.65,109.9293]
[1673627661952,244.9,16.669,16.65,109.9293]
[1673627662160,362.8504,16.669,16.65,109.9293]
[1673627662387,342.8504,16.669,16.65,109.9293]
[1673627663851,20.0,16.668,16.65,109.9293]
[1673627664078,224.91,16.667,16.65,109.9293]
[1673627664796,20.0,16.666,16.651,20.0]
[1673627665005,45.01,16.665,16.651,20.0]
[1673627666292,45.01,16.666,16.651,20.0]
[1673627666817,45.01,16.667,16.652,20.0]
[1673627667018,117.9504,16.669,16.653,65.04]
[1673627667545,117.9504,16.669,16.654,29.8800799]
[1673627667864,44.99,16.673,16.655,20.0]
[1673627668079,179.9,16.676,16.655,20.0]
[1673627668286,224.88,16.675,16.655,49.8800799]
[1673627669852,20.0,16.674,16.655,49.8800799]
[1673627670048,224.89,16.673,16.655,49.8800799]
[1673627670470,179.9,16.669,16.655,20.0]
[1673627670787,20.0,16.666,16.642,136.897]
[1673627670996,341.3151,16.665,16.643,45.07]
[1673627672395,20.0,16.664,16.643,45.07]
[1673627672583,45.02,16.663,16.643,45.07]
[1673627673420,45.02,16.663,16.644,20.0]
[1673627673944,224.92,16.663,16.644,20.0]
[1673627674373,224.92,16.663,16.643,20.0]
[1673627674582,224.92,16.663,16.643,65.07]
[1673627674797,224.92,16.663,16.643,20.0]
[1673627675958,45.02,16.663,16.643,20.0]
[1673627676160,45.01,16.664,16.643,20.0]
[1673627676378,224.91,16.664,16.643,20.0]
[1673627679838,45.01,16.664,16.643,20.0]
[1673627680051,45.01,16.664,16.643,94.9500799]
[1673627680245,116.4051,16.665,16.644,17.0]
[1673627680456,116.4051,16.665,16.646,20.0]
[1673627680667,116.4051,16.665,16.647,20.0]
[1673627681306,45.01,16.664,16.647,20.0]
[1673627681514,116.4051,16.665,16.647,20.0]
[1673627682472,45.01,16.664,16.647,20.0]
[1673627683400,116.4051,16.665,16.65,24.58]
[1673627683613,116.4051,16.665,16.651,20.0]
[1673627687833,45.01,16.664,16.651,20.0]
[1673627688034,161.4151,16.665,16.651,20.0]
[1673627689915,20.0,16.664,16.651,20.0]
[1673627690358,45.02,16.663,16.651,20.0]
[1673627691714,244.91,16.664,16.651,20.0]
[1673627691926,224.91,16.664,16.645,20.0]
[1673627692138,45.01,16.664,16.644,20.0]
[1673627692545,45.01,16.664,16.645,20.0]
[1673627692757,224.91,16.664,16.644,20.0]
[1673627693088,20.0,16.663,16.644,20.0]
[1673627693406,45.02,16.662,16.644,20.0]
[1673627693610,45.02,16.662,16.643,20.0]
[1673627693802,224.92,16.662,16.643,20.0]
[1673627694556,45.02,16.662,16.644,20.0]
[1673627694742,45.01,16.664,16.644,20.0]
[1673627695169,45.01,16.664,16.643,40.0]
[1673627697501,45.01,16.664,16.644,65.07]
[1673627697814,116.4051,16.665,16.645,20.0]
[1673627698217,116.4051,16.665,16.647,20.0]
[1673627698428,116.4051,16.665,16.648,20.0]
[1673627702342,116.4051,16.665,16.65,137.0822]
[1673627704978,116.4051,16.665,16.651,20.0]
[1673627705160,116.4051,16.665,16.652,20.0]
[1673627706335,116.4051,16.665,16.651,20.0]
[1673627707274,112.8255,16.668,16.652,20.0]
[1673627708529,45.0,16.671,16.652,20.0]
[1673627708851,113.0746,16.672,16.653,62.04]
[1673627709062,113.0746,16.672,16.654,20.0]
[1673627709254,113.0746,16.672,16.655,20.0]
[1673627712118,113.0746,16.672,16.655,65.04]
[1673627712420,113.0746,16.672,16.656,20.0]
[1673627712642,113.0746,16.672,16.657,20.0]
[1673627713247,113.0746,16.672,16.655,20.0]
[1673627714828,45.0,16.671,16.653,20.0]
[1673627715247,113.0746,16.672,16.653,20.0]
[1673627715476,158.0646,16.672,16.653,20.0]
[1673627716311,158.0646,16.672,16.652,20.0]
[1673627716524,113.0746,16.672,16.652,20.0]
[1673627716845,337.9646,16.672,16.652,20.0]
[1673627717275,20.0,16.671,16.652,20.0]
[1673627717456,45.0,16.67,16.652,20.0]
[1673627718210,45.0,16.671,16.652,20.0]
[1673627719776,224.9,16.671,16.652,20.0]
[1673627720309,20.0,16.67,16.652,20.0]
[1673627720502,45.0,16.669,16.652,20.0]
[1673627721044,224.9,16.669,16.652,20.0]
[1673627721261,20.0,16.668,16.645,116.9158]
[1673627721451,179.9,16.666,16.645,116.9158]
[1673627721662,179.9,16.664,16.645,116.9158]
[1673627721878,224.92,16.663,16.645,116.9158]
[1673627723141,45.02,16.663,16.646,20.0]
[1673627723352,224.91,16.667,16.646,20.0]
[1673627724075,224.91,16.667,16.645,116.9158]
[1673627724286,224.91,16.667,16.646,20.0]
[1673627724730,45.01,16.667,16.646,49.8800799]
[1673627724933,45.0,16.669,16.646,49.8800799]
[1673627725152,45.0,16.669,16.647,20.0]
[1673627725460,45.0,16.669,16.648,20.0]
[1673627725676,45.0,16.669,16.65,16.38]
[1673627725862,45.0,16.669,16.651,20.0]
[1673627726077,45.0,16.669,16.652,20.0]
[1673627726285,45.0,16.67,16.652,20.0]
[1673627726512,45.0,16.67,16.653,20.0]
[1673627727650,45.0,16.67,16.651,20.0]
[1673627732624,65.0,16.67,16.651,20.0]
[1673627733147,244.9,16.67,16.651,20.0]
[1673627733362,291.1300799,16.67,16.651,20.0]
[1673627733795,20.0,16.669,16.651,20.0]
[1673627734413,45.0,16.668,16.651,20.0]
[1673627737133,244.9,16.669,16.651,20.0]
[1673627737347,45.01,16.667,16.651,20.0]
[1673627737548,45.0,16.668,16.651,20.0]
[1673627741050,224.9,16.669,16.651,20.0]
[1673627741781,45.0,16.669,16.651,20.0]
[1673627741988,45.0,16.671,16.652,20.0]
[1673627742301,45.0,16.671,16.653,20.0]
[1673627743356,113.0746,16.672,16.653,20.0]
[1673627743565,45.0,16.67,16.653,20.0]
[1673627743776,45.0,16.671,16.653,20.0]
[1673627744506,74.8800799,16.671,16.653,20.0]
[1673627744696,74.8800799,16.671,16.65,135.0533]
[1673627744697,74.8800799,16.671,16.651,40.0]
[1673627746193,45.0,16.671,16.651,40.0]
[1673627746593,224.9,16.671,16.651,20.0]
[1673627746804,29.8800799,16.67,16.651,20.0]
[1673627747250,45.0,16.669,16.651,20.0]
[1673627747463,45.0,16.67,16.652,20.0]
[1673627747647,45.0,16.671,16.653,20.0]
[1673627747983,45.0,16.671,16.654,20.0]
[1673627748165,113.0746,16.672,16.655,20.0]
[1673627748589,113.0746,16.672,16.656,45.04]
[1673627748821,113.0746,16.672,16.658,20.0]
[1673627749017,113.0746,16.672,16.659,131.0609]
[1673627749343,44.98,16.676,16.66,32.7]
[1673627749548,109.2675,16.682,16.661,17.0]
[1673627749760,109.2675,16.682,16.662,20.0]
[1673627750085,109.2675,16.682,16.663,20.0]
[1673627750409,109.2675,16.682,16.67,16.3]
[1673627750710,113.9869,16.686,16.671,20.0]
[1673627751026,113.9869,16.686,16.671,49.8800799]
[1673627751641,113.9869,16.686,16.671,20.0]
[1673627752792,44.95,16.687,16.672,20.0]
[1673627753005,44.94,16.693,16.673,20.0]
[1673627753222,157.3585,16.694,16.674,20.0]
[1673627753437,44.94,16.692,16.674,20.0]
[1673627753646,44.94,16.693,16.675,20.0]
[1673627753964,44.94,16.691,16.675,20.0]
[1673627754184,44.94,16.692,16.675,20.0]
[1673627754377,44.94,16.693,16.675,20.0]
[1673627754622,44.94,16.691,16.676,29.8800799]
[1673627754806,44.94,16.692,16.677,40.0]
[1673627755018,44.94,16.693,16.677,150.2635]
[1673627755733,337.2585,16.694,16.677,150.2635]
[1673627756364,292.3285,16.694,16.677,150.2635]
[1673627757007,337.2585,16.694,16.677,150.2635]
[1673627758391,292.3285,16.694,16.677,180.1435799]
[1673627759008,337.2585,16.694,16.677,160.1435799]
[1673627759429,292.3285,16.694,16.677,160.1435799]
[1673627759644,292.3285,16.694,16.678,20.0]
[1673627759855,292.3285,16.694,16.679,20.0]
[1673627760166,112.4285,16.694,16.68,16.38]
[1673627760378,112.4285,16.694,16.682,20.0]
[1673627760591,112.4285,16.694,16.683,20.0]
[1673627761226,112.4285,16.694,16.682,20.0]
[1673627762786,112.4285,16.694,16.681,20.0]
[1673627763331,112.4285,16.694,16.682,29.8800799]
[1673627763539,112.4285,16.694,16.683,20.0]
[1673627763758,112.4285,16.694,16.681,20.0]
[1673627767737,292.3285,16.694,16.681,20.0]
[1673627770556,112.4285,16.694,16.681,20.0]
[1673627770769,292.3285,16.694,16.681,20.0]
[1673627771187,337.2585,16.694,16.678,20.0]
[1673627771609,292.3285,16.694,16.678,20.0]
[1673627772567,20.0,16.693,16.678,20.0]
[1673627772789,179.9,16.692,16.678,20.0]
[1673627773187,20.0,16.691,16.678,20.0]
[1673627773399,20.0,16.691,16.672,44.99]
[1673627773400,196.16,16.69,16.67,453.53]
[1673627773612,20.0,16.689,16.67,408.53]
[1673627774783,196.16,16.69,16.67,408.53]
[1673627774971,16.26,16.69,16.67,408.53]
[1673627775182,16.26,16.69,16.671,40.0]
[1673627775509,179.9,16.689,16.671,20.0]
[1673627776337,20.0,16.688,16.671,20.0]
[1673627777403,179.9,16.686,16.671,20.0]
[1673627777608,20.0,16.685,16.671,20.0]
[1673627778040,179.9,16.683,16.669,20.0]
[1673627778442,44.97,16.682,16.669,20.0]
[1673627778878,179.9,16.685,16.669,20.0]
[1673627780136,44.95,16.686,16.669,49.8800799]
[1673627780365,289.6449,16.687,16.669,49.8800799]
[1673627780541,289.6449,16.687,16.67,20.0]
[1673627780867,109.7449,16.687,16.672,20.0]
[1673627781077,44.94,16.692,16.673,20.0]
[1673627781277,155.4338,16.696,16.673,94.8700799]
[1673627781490,110.5038,16.696,16.674,20.0]
[1673627781714,110.5038,16.696,16.675,20.0]
[1673627782032,110.5038,16.696,16.676,20.0]
[1673627782233,110.5038,16.696,16.677,20.0]
[1673627782554,110.5038,16.696,16.678,20.0]
[1673627782875,110.5038,16.696,16.68,16.38]
[1673627783061,110.5038,16.696,16.681,20.0]
[1673627784974,298.6316,16.695,16.681,20.0]